fUSD/lending_fUSD_20240412
["ID","MTS","AMOUNT","RATE_DAILY","PERIOD"]
[322280859,1712932251648,-500.0,0.00046575,31]
[322280860,1712932251658,-517.24,0.00046575,31]
[322280861,1712932251668,-465.5,0.00046575,31]
[322280862,1712932251677,-500.0,0.00046575,31]
[322280863,1712932251687,-500.0,0.00046575,31]
[322280864,1712932251697,-500.0,0.00046575,31]
[322280865,1712932251707,-500.0,0.00046575,31]
[322280866,1712932251717,-500.0,0.00046575,31]
[322280867,1712932251727,-500.0,0.00046575,31]
[322280868,1712932251738,-500.0,0.00046575,31]
[322280869,1712932251748,-500.0,0.00046575,31]
[322280870,1712932251757,-500.0,0.00046575,31]
[322280871,1712932251767,-500.0,0.00046575,31]
[322280872,1712932251776,-500.0,0.00046575,31]
[322280873,1712932251785,-500.0,0.00046575,31]
[322280874,1712932251794,-500.0,0.00046575,31]
[322280875,1712932251803,-500.0,0.00046575,31]
[322280876,1712932251813,-500.0,0.00046575,31]
[322280877,1712932251822,-402.96900131,0.00046575,31]
[322280878,1712932251831,-500.0,0.00046575,31]
[322280879,1712932251841,-500.0,0.00046575,31]
[322280880,1712932251850,-500.0,0.00046575,31]
[322280881,1712932251859,-500.0,0.00046575,31]
[322280882,1712932251868,-500.0,0.00046575,31]
[322280883,1712932251877,-500.0,0.00046575,31]
[322280884,1712932251886,-500.0,0.00046575,31]
[322280885,1712932251895,-500.0,0.00046575,31]
[322280886,1712932251905,-500.0,0.00046575,31]
[322280887,1712932251914,-500.0,0.00046575,31]
[322280888,1712932251923,-500.0,0.00046575,31]
[322280889,1712932251933,-500.0,0.00046575,30]
[322280890,1712932251943,-500.0,0.00046575,31]
[322280891,1712932251953,-500.0,0.00046575,31]
[322280892,1712932251969,-500.0,0.00046575,31]
[322280893,1712932251978,-500.0,0.00046575,31]
[322280894,1712932251988,-500.0,0.00046575,31]
[322280895,1712932251998,-500.0,0.00046575,31]
[322280896,1712932252008,-500.0,0.00046575,31]
[322280897,1712932252017,-500.0,0.00046575,31]
[322280898,1712932252026,-500.0,0.00046575,31]
[322280899,1712932252035,-577.46812739,0.00046575,31]
[322280900,1712932252044,-343.26471473,0.00046575,31]
[322280901,1712932252056,-612.26,0.00046575,31]
[322280902,1712932252066,-500.0,0.00046575,31]
[322280903,1712932252076,-500.0,0.00046575,31]
[322280904,1712932252086,-500.0,0.00046575,31]
[322280905,1712932252095,-500.0,0.00046575,31]
[322280906,1712932252105,-621.43,0.00046575,2]
[322280907,1712932252115,-500.0,0.00046575,31]
[322280908,1712932252124,-500.0,0.00046575,31]
[322280909,1712932252138,-500.0,0.00046575,31]
[322280910,1712932252155,-500.0,0.00046575,31]
[322280911,1712932252165,-500.0,0.00046575,31]
[322280912,1712932252174,-500.0,0.00046575,31]
[322280913,1712932252184,-500.0,0.00046575,31]
[322280914,1712932252193,-150.0,0.00046575,31]
[322280915,1712932252202,-500.0,0.00046575,31]
[322280916,1712932252212,-500.0,0.00046575,31]
[322280917,1712932252222,-500.0,0.00046575,31]
[322280918,1712932252233,-500.0,0.00046575,31]
[322280919,1712932252244,-691.34,0.00046575,31]
[322280920,1712932252254,-500.0,0.00046575,31]
[322280921,1712932252265,-397.13,0.00046575,31]
[322280922,1712932252276,-500.0,0.00046575,31]
[322280923,1712932252287,-500.0,0.00046575,31]
[322280924,1712932252297,-500.0,0.00046575,31]
[322280925,1712932252308,-538.28,0.00046575,31]
[322280926,1712932252318,-611.78893873,0.00046575,31]
[322280927,1712932252327,-500.0,0.00046575,31]
[322280928,1712932252337,-500.0,0.00046575,31]
[322280929,1712932252346,-500.0,0.00046575,31]
[322280930,1712932252357,-500.0,0.00046575,31]
[322280931,1712932252367,-488.9148108,0.00046575,31]
[322280932,1712932252377,-500.0,0.00046575,31]
[322280933,1712932252387,-500.0,0.00046575,31]
[322280934,1712932252398,-500.0,0.00046575,31]
[322280935,1712932252408,-702.45,0.00046575,31]
[322280936,1712932252418,-500.0,0.00046575,31]
[322280937,1712932252427,-500.0,0.00046575,31]
[322280938,1712932252439,-500.0,0.00046575,31]
[322280939,1712932252448,-500.0,0.00046575,31]
[322280940,1712932252458,-500.0,0.00046575,31]
[322280941,1712932252467,-505.82,0.00046575,31]
[322280942,1712932252479,-500.0,0.00046575,31]
[322280943,1712932252490,-500.0,0.00046575,31]
[322280944,1712932252499,-500.0,0.00046575,31]
[322280945,1712932252508,-500.0,0.00046575,31]
[322280946,1712932252517,-500.0,0.00046575,31]
[322280947,1712932252527,-500.0,0.00046575,31]
[322280948,1712932252536,-500.0,0.00046575,31]
[322280949,1712932252545,-500.0,0.00046575,31]
[322280950,1712932252554,-507.58903345,0.00046575,31]
[322280951,1712932252563,-500.0,0.00046575,31]
[322280952,1712932252573,-505.71998277,0.00046575,31]
[322280953,1712932252583,-500.0,0.00046575,7]
[322280954,1712932252593,-505.16836539,0.00046575,31]
[322280955,1712932252602,-500.0,0.00046575,31]
[322280956,1712932252612,-500.0,0.00046575,31]
[322280957,1712932252620,-500.0,0.00046575,31]
[322280958,1712932252629,-500.0,0.00046575,31]
[322280959,1712932252641,-747.37,0.00046575,31]
[322280960,1712932252651,-500.0,0.00046575,31]
[322280961,1712932252661,-500.0,0.00046575,31]
[322280962,1712932252671,-505.91052923,0.00046575,31]
[322280963,1712932252681,-500.0,0.00046575,31]
[322280964,1712932252691,-500.0,0.00046575,31]
[322280965,1712932252700,-500.0,0.00046575,31]
[322280966,1712932252710,-466.60603008,0.00046575,31]
[322280967,1712932252720,-662.01,0.00046575,31]
[322280968,1712932252730,-500.0,0.00046575,31]
[322280969,1712932252739,-500.0,0.00046575,31]
[322280970,1712932252748,-500.0,0.00046575,31]
[322280971,1712932252758,-500.0,0.00046575,31]
[322280972,1712932252768,-500.0,0.00046575,31]
[322280973,1712932252778,-500.0,0.00046575,31]
[322280974,1712932252787,-500.0,0.00046575,31]
[322280975,1712932252797,-500.0,0.00046575,31]
[322280976,1712932252806,-520.37505445,0.00046575,31]
[322280977,1712932252815,-500.0,0.00046575,31]
[322280978,1712932252825,-506.78226596,0.00046575,31]
[322280979,1712932252834,-500.0,0.00046575,31]
[322280980,1712932252844,-500.0,0.00046575,31]
[322280981,1712932252855,-504.21023796,0.00046575,31]
[322280982,1712932252864,-500.0,0.00046575,31]
[322280983,1712932252874,-500.0,0.00046575,31]
[322280984,1712932252884,-500.0,0.00046575,31]
[322280985,1712932252893,-500.0,0.00046575,31]
[322280986,1712932252902,-1486.72,0.00046575,31]
[322280987,1712932252912,-500.0,0.00046575,31]
[322280988,1712932252921,-500.0,0.00046575,31]
[322280989,1712932252930,-5097.44,0.00046575,31]
[322280990,1712932252939,-500.0,0.00046575,31]
[322280991,1712932252949,-500.0,0.00046575,31]
[322280992,1712932252958,-666.65,0.00046575,31]
[322280993,1712932252968,-509.34808515,0.00046575,31]
[322280994,1712932252977,-500.0,0.00046575,31]
[322280995,1712932252987,-500.0,0.00046575,31]
[322280996,1712932252996,-500.0,0.00046575,31]
[322280997,1712932253005,-1217.74,0.00046575,31]
[322280998,1712932253015,-500.0,0.00046575,31]
[322280999,1712932253024,-500.0,0.00046575,31]
[322281000,1712932253034,-507.85147234,0.00046575,31]
[322281001,1712932253043,-500.0,0.00046575,31]
[322281002,1712932253053,-500.0,0.00046575,31]
[322281003,1712932253064,-500.0,0.00046575,31]
[322281004,1712932253074,-500.0,0.00046575,31]
[322281005,1712932253083,-508.94840733,0.00046575,31]
[322281006,1712932253092,-500.0,0.00046575,31]
[322281007,1712932253103,-500.0,0.00046575,31]
[322281008,1712932253113,-176.2384359,0.00046575,31]
[322281009,1712932253123,-500.0,0.00046575,31]
[322281010,1712932253134,-500.0,0.00046575,31]
[322281011,1712932253144,-500.0,0.00046575,31]
[322281012,1712932253154,-500.0,0.00046575,31]
[322281013,1712932253164,-500.0,0.00046575,31]
[322281014,1712932253174,-500.0,0.00046575,31]
[322281015,1712932253184,-500.0,0.00046575,31]
[322281016,1712932253194,-500.0,0.00046575,31]
[322281017,1712932253204,-500.0,0.00046575,31]
[322281018,1712932253213,-500.0,0.00046575,31]
[322281019,1712932253222,-500.0,0.00046575,31]
[322281020,1712932253232,-500.0,0.00046575,31]
[322281021,1712932253241,-500.0,0.00046575,31]
[322281022,1712932253251,-500.0,0.00046575,31]
[322281023,1712932253261,-500.0,0.00046575,31]
[322281024,1712932253271,-500.0,0.00046575,31]
[322281025,1712932253281,-500.0,0.00046575,31]
[322281026,1712932253291,-500.0,0.00046575,31]
[322281027,1712932253301,-500.0,0.00046575,31]
[322281028,1712932253311,-330.42811057,0.00046575,31]
[322281029,1712932253321,-500.0,0.00046575,31]
[322281030,1712932253330,-500.0,0.00046575,31]
[322281031,1712932253340,-500.0,0.00046575,31]
[322281032,1712932253350,-487.35163612,0.00046575,31]
[322281033,1712932253361,-500.0,0.00046575,31]
[322281034,1712932253370,-604.82,0.00046575,31]
[322281035,1712932253380,-1074.08,0.00046575,31]
[322281036,1712932253389,-500.0,0.00046575,31]
[322281037,1712932253401,-500.0,0.00046575,31]
[322281038,1712932253411,-500.0,0.00046575,31]
[322281039,1712932253421,-508.08473832,0.00046575,31]
[322281040,1712932253432,-500.0,0.00046575,31]
[322281041,1712932253442,-500.0,0.00046575,31]
[322281042,1712932253451,-500.0,0.00046575,31]
[322281043,1712932253461,-500.0,0.00046575,31]
[322281044,1712932253472,-500.0,0.00046575,31]
[322281045,1712932253482,-500.0,0.00046575,31]
[322281046,1712932253491,-500.0,0.00046575,31]
[322281047,1712932253500,-500.0,0.00046575,31]
[322281048,1712932253510,-500.0,0.00046575,31]
[322281049,1712932253519,-500.0,0.00046575,31]
[322281050,1712932253529,-500.0,0.00046575,31]
[322281051,1712932253538,-500.0,0.00046575,31]
[322281052,1712932253548,-500.0,0.00046575,31]
[322281053,1712932253557,-500.0,0.00046575,31]
[322281054,1712932253566,-500.0,0.00046575,31]
[322281055,1712932253576,-508.21,0.00046575,31]
[322281056,1712932253585,-502.77341379,0.00046575,31]
[322281057,1712932253594,-3098.58,0.00046575,31]
[322281058,1712932253606,-518.03904306,0.00046575,31]
[322281059,1712932253615,-5402.79,0.00046575,31]
[322281060,1712932253625,-500.0,0.00046575,31]
[322281061,1712932253635,-500.0,0.00046575,31]
[322281062,1712932253644,-500.0,0.00046575,31]
[322281063,1712932253653,-500.0,0.00046575,31]
[322281064,1712932253662,-520.86503393,0.00046575,31]
[322281065,1712932253672,-628.69,0.00046575,31]
[322281066,1712932253681,-500.0,0.00046575,31]
[322281067,1712932253690,-500.0,0.00046575,31]
[322281068,1712932253698,-500.0,0.00046575,31]
[322281069,1712932253707,-500.0,0.00046575,31]
[322281070,1712932253717,-755.08,0.00046575,31]
[322281071,1712932253726,-521.78,0.00046575,31]
[322281072,1712932253735,-500.0,0.00046575,31]
[322281073,1712932253744,-500.0,0.00046575,31]
[322281074,1712932253754,-500.0,0.00046575,31]
[322281075,1712932253764,-500.0,0.00046575,31]
[322281076,1712932253773,-500.0,0.00046575,31]
[322281077,1712932253782,-500.0,0.00046575,31]
[322281078,1712932253791,-1277.67,0.00046575,31]
[322281079,1712932253800,-500.0,0.00046575,31]
[322281080,1712932253810,-500.0,0.00046575,31]
[322281081,1712932253819,-500.0,0.00046575,31]
[322281082,1712932253828,-583.7,0.00046575,31]
[322281083,1712932253839,-500.0,0.00046575,31]
[322281084,1712932253848,-500.0,0.00046575,31]
[322281085,1712932253859,-672.51,0.00046575,31]
[322281086,1712932253868,-469.71321926,0.00046575,31]
[322281087,1712932253878,-500.0,0.00046575,31]
[322281088,1712932253887,-500.0,0.00046575,5]
[322281089,1712932253897,-897.14,0.00046575,31]
[322281090,1712932253907,-500.0,0.00046575,31]
[322281091,1712932253916,-500.0,0.00046575,31]
[322281092,1712932253925,-500.0,0.00046575,31]
[322281093,1712932253935,-151.3229894,0.00046575,31]
[322281094,1712932253944,-500.0,0.00046575,31]
[322281095,1712932253954,-500.0,0.00046575,31]
[322281096,1712932253964,-500.0,0.00046575,31]
[322281097,1712932253973,-500.0,0.00046575,31]
[322281098,1712932253982,-500.0,0.00046575,31]
[322281100,1712932253991,-500.0,0.00046575,31]
[322281101,1712932254000,-500.0,0.00046575,31]
[322281102,1712932254009,-690.24,0.00046575,31]
[322281103,1712932254018,-510.06228773,0.00046575,3]
[322281104,1712932254028,-500.0,0.00046575,31]
[322281105,1712932254037,-500.0,0.00046575,31]
[322281106,1712932254047,-500.0,0.00046575,21]
[322281107,1712932254057,-2797.23,0.00046575,31]
[322281108,1712932254068,-500.0,0.00046575,31]
[322281109,1712932254078,-500.0,0.00046575,31]
[322281110,1712932254088,-665.47,0.00046575,31]
[322281111,1712932254099,-500.0,0.00046575,31]
[322281112,1712932254110,-500.0,0.00046575,31]
[322281113,1712932254120,-500.0,0.00046575,31]
[322281114,1712932254130,-500.0,0.00046575,31]
[322281115,1712932254140,-526.86381402,0.00046575,31]
[322281116,1712932254150,-500.0,0.00046575,31]
[322281117,1712932254159,-511.10079413,0.00046575,31]
[322281118,1712932254169,-500.0,0.00046575,31]
[322281119,1712932254179,-500.0,0.00046575,31]
[322281120,1712932254189,-511.2609775,0.00046575,31]
[322281121,1712932254199,-500.0,0.00046575,31]
[322281122,1712932254208,-500.0,0.00046575,31]
[322281123,1712932254218,-500.0,0.00046575,31]
[322281124,1712932254227,-500.0,0.00046575,31]
[322281125,1712932254236,-625.56609854,0.00046575,31]
[322281126,1712932254246,-500.0,0.00046575,31]
[322281127,1712932254255,-510.9744428,0.00046575,31]
[322281128,1712932254264,-500.0,0.00046575,31]
[322281129,1712932254273,-500.0,0.00046575,31]
[322281130,1712932254282,-500.0,0.00046575,31]
[322281131,1712932254291,-500.0,0.00046575,31]
[322281132,1712932254300,-500.0,0.00046575,31]
[322281133,1712932254310,-500.0,0.00046575,31]
[322281134,1712932254319,-513.6418495,0.00046575,31]
[322281135,1712932254329,-500.0,0.00046575,31]
[322281136,1712932254339,-500.0,0.00046575,31]
[322281137,1712932254349,-500.0,0.00046575,31]
[322281138,1712932254360,-500.0,0.00046575,31]
[322281139,1712932254370,-518.37425659,0.00046575,31]
[322281140,1712932254381,-537.7218978,0.00046575,31]
[322281141,1712932254392,-1459.05,0.00046575,31]
[322281142,1712932254403,-184.95337491,0.00046575,31]
[322281143,1712932254413,-500.0,0.00046575,31]
[322281144,1712932254424,-500.0,0.00046575,31]
[322281145,1712932254433,-1230.89,0.00046575,31]
[322281146,1712932254443,-510.86018858,0.00046575,31]
[322281147,1712932254452,-500.0,0.00046575,31]
[322281148,1712932254464,-500.0,0.00046575,31]
[322281149,1712932254473,-500.0,0.00046575,31]
[322281150,1712932254483,-500.0,0.00046575,31]
[322281151,1712932254492,-500.0,0.00046575,31]
[322281152,1712932254502,-500.0,0.00046575,31]
[322281153,1712932254512,-500.0,0.00046575,31]
[322281154,1712932254522,-2213.61,0.00046575,31]
[322281155,1712932254533,-536.54474859,0.00046575,31]
[322281156,1712932254542,-500.0,0.00046575,31]
[322281157,1712932254554,-500.0,0.00046575,31]
[322281158,1712932254564,-500.0,0.00046575,31]
[322281159,1712932254574,-514.31222022,0.00046575,31]
[322281160,1712932254583,-612.92,0.00046575,31]
[322281161,1712932254592,-506.12671531,0.00046575,31]
[322281162,1712932254602,-500.0,0.00046575,31]
[322281163,1712932254612,-754.08,0.00046575,31]
[322281164,1712932254621,-511.40607744,0.00046575,31]
[322281165,1712932254631,-1797.61,0.00046575,31]
[322281166,1712932254640,-500.0,0.00046575,31]
[322281167,1712932254650,-500.0,0.00046575,31]
[322281168,1712932254660,-1032.73,0.00046575,31]
[322281169,1712932254669,-500.0,0.00046575,31]
[322281170,1712932254678,-500.0,0.00046575,31]
[322281171,1712932254687,-500.0,0.00046575,31]
[322281172,1712932254696,-500.0,0.00046575,31]
[322281173,1712932254705,-604.50616769,0.00046575,31]
[322281174,1712932254713,-500.0,0.00046575,31]
[322281175,1712932254723,-1825.35,0.00046575,31]
[322281176,1712932254733,-500.0,0.00046575,31]
[322281177,1712932254742,-316.56923321,0.00046575,31]
[322281178,1712932254752,-500.0,0.00046575,31]
[322281179,1712932254761,-398.3,0.00046575,31]
[322281180,1712932254770,-1023.55,0.00046575,31]
[322281181,1712932254779,-500.0,0.00046575,31]
[322281182,1712932254788,-500.0,0.00046575,31]
[322281183,1712932254798,-500.0,0.00046575,31]
[322281184,1712932254807,-1939.06,0.00046575,31]
[322281185,1712932254817,-1826.11,0.00046575,31]
[322281186,1712932254826,-500.0,0.00046575,31]
[322281187,1712932254836,-500.0,0.00046575,31]
[322281188,1712932254845,-1072.93,0.00046575,31]
[322281189,1712932255005,-638.32,0.00046575,31]
[322281190,1712932255035,-500.0,0.00046575,31]
[322281191,1712932255045,-500.0,0.00046575,31]
[322281192,1712932255055,-500.0,0.00046575,31]
[322281193,1712932255064,-507.2435681,0.00046575,31]
[322281194,1712932255073,-448.64762469,0.00046575,31]
[322281195,1712932255082,-6523.12,0.00046575,31]
[322281196,1712932255092,-604.62,0.00046575,31]
[322281197,1712932255101,-578.92,0.00046575,31]
[322281198,1712932255112,-1044.53,0.00046575,31]
[322281199,1712932255123,-505.90352342,0.00046575,31]
[322281200,1712932255133,-500.0,0.00046575,31]
[322281201,1712932255142,-500.0,0.00046575,31]
[322281202,1712932255151,-871.26,0.00046575,31]
[322281203,1712932255160,-500.0,0.00046575,31]
[322281204,1712932255170,-172.51383427,0.00046575,31]
[322281205,1712932255179,-500.0,0.00046575,31]
[322281206,1712932255188,-500.0,0.00046575,31]
[322281207,1712932255197,-500.0,0.00046575,31]
[322281208,1712932255207,-500.0,0.00046575,31]
[322281209,1712932255215,-500.0,0.00046575,31]
[322281210,1712932255225,-851.38,0.00046575,31]
[322281211,1712932255234,-500.0,0.00046575,31]
[322281212,1712932255244,-502.80174093,0.00046575,31]
[322281213,1712932255253,-992.77,0.00046575,31]
[322281214,1712932255263,-767.12,0.00046575,31]
[322281215,1712932255272,-500.0,0.00046575,31]
[322281216,1712932255282,-500.0,0.00046575,31]
[322281217,1712932255292,-507.95893286,0.00046575,31]
[322281218,1712932255301,-500.0,0.00046575,31]
[322281219,1712932255312,-507.24961377,0.00046575,31]
[322281220,1712932255322,-504.82540812,0.00046575,31]
[322281221,1712932255333,-1944.43,0.00046575,31]
[322281222,1712932255345,-500.0,0.00046575,31]
[322281223,1712932255356,-500.0,0.00046575,31]
[322281224,1712932255368,-808.31,0.00046575,31]
[322281225,1712932255379,-500.0,0.00046575,31]
[322281226,1712932255390,-500.0,0.00046575,31]
[322281227,1712932255400,-513.62,0.00046575,31]
[322281228,1712932255413,-500.0,0.00046575,31]
[322281229,1712932255423,-500.0,0.00046575,31]
[322281230,1712932255433,-500.0,0.00046575,31]
[322281231,1712932255442,-333.41,0.00046575,31]
[322281232,1712932255453,-500.0,0.00046575,31]
[322281233,1712932255463,-567.95389229,0.00046575,31]
[322281234,1712932255473,-500.0,0.00046575,31]
[322281235,1712932255484,-830.2,0.00046575,31]
[322281236,1712932255493,-500.0,0.00046575,31]
[322281237,1712932255504,-500.0,0.00046575,31]
[322281238,1712932255514,-500.0,0.00046575,2]
[322281239,1712932255523,-500.0,0.00046575,31]
[322281240,1712932255532,-500.0,0.00046575,31]
[322281241,1712932255542,-609.6,0.00046575,31]
[322281242,1712932255551,-299.5386236,0.00046575,31]
[322281243,1712932255561,-500.0,0.00046575,31]
[322281244,1712932255570,-500.0,0.00046575,31]
[322281245,1712932255580,-500.0,0.00046575,31]
[322281246,1712932255590,-500.0,0.00046575,31]
[322281247,1712932255600,-500.0,0.00046575,31]
[322281248,1712932255611,-500.0,0.00046575,31]
[322281249,1712932255621,-500.0,0.00046575,31]
[322281250,1712932255630,-1025.86,0.00046575,31]
[322281251,1712932255640,-500.0,0.00046575,31]
[322281252,1712932255649,-500.0,0.00046575,31]
[322281253,1712932255658,-500.0,0.00046575,31]
[322281254,1712932255667,-500.0,0.00046575,31]
[322281255,1712932255676,-1870.81,0.00046575,31]
[322281256,1712932255686,-655.87,0.00046575,31]
[322281257,1712932255696,-259.85940966,0.00046575,31]
[322281258,1712932255706,-500.0,0.00046575,31]
[322281259,1712932255716,-887.38,0.00046575,31]
[322281260,1712932255726,-4707.9,0.00046575,31]
[322281261,1712932255737,-425.26038919,0.00046575,31]
[322281262,1712932255747,-688.0,0.00046575,31]
[322281263,1712932255757,-620.49,0.00046575,31]
[322281264,1712932255767,-500.0,0.00046575,31]
[322281265,1712932255777,-500.0,0.00046575,31]
[322281266,1712932255788,-500.0,0.00046575,31]
[322281267,1712932255798,-1000.0,0.00046575,30]
[322281268,1712932255808,-500.0,0.0004659,30]
[322281269,1712932255817,-150.0,0.000466,103]
[322281270,1712932255827,-136389.58544915,0.000466,30]
[322281271,1712932255836,-2500.0,0.000466,2]
[322281272,1712932255845,-1000.0,0.0004667,3]
[322281273,1712932255855,-500.0,0.0004667,3]
[322281274,1712932255867,-314623.25257072,0.0004669,120]
[322281275,1712932255876,-151.0,0.0004669,14]
[322281276,1712932255885,-151.0,0.0004669,14]
[322281277,1712932255894,-151.0,0.0004669,14]
[322281278,1712932255904,-151.0,0.0004669,14]
[322281279,1712932255914,-151.0,0.0004669,14]
[322281280,1712932255924,-202.027168,0.0004669,14]
[322281281,1712932255933,-151.0,0.0004669,14]
[322281282,1712932255942,-151.0,0.0004669,14]
[322281283,1712932255951,-151.0,0.0004669,14]
[322281284,1712932255960,-681.574382,0.0004669,14]
[322281285,1712932255970,-681.574382,0.0004669,14]
[322281286,1712932255979,-151.0,0.0004669,14]
[322281287,1712932255989,-151.0,0.0004669,14]
[322281288,1712932255998,-151.0,0.0004669,14]
[322281289,1712932256007,-151.0,0.0004669,14]
[322281290,1712932256017,-155.00257,0.0004669,14]
[322281291,1712932256028,-151.0,0.0004669,14]
[322281292,1712932256037,-151.0,0.0004669,14]
[322281293,1712932256047,-151.0,0.0004669,14]
[322281294,1712932256056,-151.0,0.0004669,14]
[322281295,1712932256065,-152.651977,0.0004669,14]
[322281296,1712932256075,-151.0,0.0004669,14]
[322281297,1712932256085,-179.281061,0.0004669,14]
[322281298,1712932256096,-153.934131,0.0004669,14]
[322281299,1712932256108,-152.651977,0.0004669,14]
[322281300,1712932256119,-202.256037,0.0004669,14]
[322281301,1712932256129,-202.256037,0.0004669,14]
[322281302,1712932256140,-151.0,0.0004669,14]
[322281303,1712932256149,-151.0,0.0004669,14]
[322281304,1712932256159,-151.0,0.0004669,14]
[322281305,1712932256169,-151.0,0.0004669,14]
[322281306,1712932256179,-153.443231,0.0004669,14]
[322281307,1712932256189,-151.0,0.0004669,14]
[322281308,1712932256198,-151.0,0.0004669,14]
[322281309,1712932256208,-261.245183,0.0004669,14]
[322281310,1712932256217,-151.0,0.0004669,14]
[322281311,1712932256227,-151.0,0.0004669,14]
[322281312,1712932256236,-163.068894,0.0004669,14]
[322281313,1712932256246,-151.0,0.0004669,7]
[322281314,1712932256256,-207.709276,0.0004669,14]
[322281315,1712932256265,-151.0,0.0004669,14]
[322281316,1712932256274,-633.919989,0.0004669,14]
[322281317,1712932256284,-633.919989,0.0004669,14]
[322281318,1712932256294,-151.0,0.0004669,14]
[322281319,1712932256303,-151.0,0.0004669,14]
[322281320,1712932256313,-290.209732,0.0004669,14]
[322281321,1712932256323,-151.0,0.0004669,14]
[322281322,1712932256333,-151.0,0.0004669,14]
[322281323,1712932256342,-158.083713,0.0004669,14]
[322281324,1712932256352,-151.0,0.0004669,14]
[322281325,1712932256362,-227.816751,0.0004669,14]
[322281326,1712932256371,-153.55449,0.0004669,14]
[322281327,1712932256381,-151.0,0.0004669,14]
[322281328,1712932256393,-153.55449,0.0004669,14]
[322281329,1712932256403,-151.0,0.0004669,14]
[322281330,1712932256412,-151.0,0.0004669,14]
[322281331,1712932256422,-151.0,0.0004669,14]
[322281332,1712932256434,-151.0,0.0004669,14]
[322281333,1712932256444,-150.0,0.00046698,30]
[322281334,1712932256453,-2759.0,0.000467,115]
[322281335,1712932256462,-7854.76906174,0.00046704,35]
[322281336,1712932256473,-150.0,0.0004672,2]
[322281337,1712932256482,-151.0,0.00046735,2]
[322281338,1712932256492,-211.0,0.0004676,30]
[322281339,1712932256501,-211.0,0.0004676,30]
[322281340,1712932256512,-211.0,0.0004676,30]
[322281341,1712932256521,-150.0,0.00046761,30]
[322281342,1712932256531,-162.9136253,0.000468,60]
[322281343,1712932256541,-2900.2656519,0.0004682,5]
[322281344,1712932256551,-14043.81266946,0.00046821,2]
[322281345,1712932256562,-150.0,0.00046848,7]
[322281346,1712932256572,-510.25310543,0.00046849,31]
[322281347,1712932256582,-500.0,0.00046849,31]
[322281348,1712932256592,-500.0,0.00046849,31]
[322281349,1712932256601,-500.0,0.00046849,31]
[322281350,1712932256611,-500.0,0.00046849,31]
[322281351,1712932256621,-500.0,0.00046849,31]
[322281352,1712932256630,-500.0,0.00046849,31]
[322281353,1712932256640,-500.0,0.00046849,31]
[322281354,1712932256649,-500.0,0.00046849,31]
[322281355,1712932256658,-500.0,0.00046849,31]
[322281356,1712932256668,-500.0,0.00046849,31]
[322281357,1712932256678,-500.0,0.00046849,31]
[322281358,1712932256688,-500.0,0.00046849,31]
[322281359,1712932256697,-530.68,0.00046849,31]